bitfinex-derivatives/quotes_ETHF0:USTF0_20250817
["timestamp","ask_amount","ask_price","bid_price","bid_amount"]
[1755428666103,1.66796964,4563.9,4563.8,1.1877]
[1755428667105,1.66799201,4563.9,4563.8,1.1877]
[1755428667600,1.66802211,4563.9,4563.8,1.436]
[1755428671707,0.79622211,4563.9,4563.8,0.9398]
[1755428672007,0.79622211,4563.9,4563.8,1.436]
[1755428672303,1.66802211,4563.9,4563.8,1.436]
[1755428672500,1.66802211,4563.9,4563.8,0.816]
[1755428672696,1.0689,4563.2,4563.1,4.0285]
[1755428672902,1.2028,4563.2,4563.1,4.6438]
[1755428673107,1.4545,4563.2,4563.1,4.6438]
[1755428673499,0.6201,4563.1,4562.6,0.4915]
[1755428673699,0.8172,4562.7,4562.6,1.0643]
[1755428673899,1.4545,4562.7,4562.6,0.3245]
[1755428674096,1.2059,4562.6,4562.5,3.2078]
[1755428674301,0.5827,4562.6,4561.8,3.2078]
[1755428674498,0.5827,4562.3,4562.2,1.1877]
[1755428674696,1.4545,4562.3,4562.2,1.1877]
[1755428674898,1.4545,4562.3,4562.2,0.3245]
[1755428675101,1.4545,4562.2,4562.1,0.1673]
[1755428675298,1.66811524,4562.2,4562.1,1.436]
[1755428676103,1.4545,4562.2,4562.1,1.436]
[1755428677407,0.9683,4562.2,4562.1,1.436]
[1755428677709,3.2078,4562.8,4561.8,3.38424292]
[1755428677710,1.4545,4562.7,4562.6,1.0643]
[1755428678408,0.8718,4562.6,4561.8,3.38424292]
[1755428678605,1.4545,4562.0,4561.9,1.436]
[1755428680302,1.4545,4562.0,4561.9,1.0643]
[1755428680503,1.4545,4562.0,4561.9,1.436]
[1755428680802,0.4862,4562.4,4561.9,1.436]
[1755428681007,1.0689,4562.4,4562.3,0.5728]
[1755428681308,1.0689,4562.4,4562.3,1.436]
[1755428681510,1.4545,4562.4,4562.3,1.436]
[1755428681805,1.4545,4562.4,4562.0,0.2436]
[1755428682012,0.5827,4562.1,4562.0,0.8164]
[1755428682309,1.4545,4562.1,4562.0,1.436]
[1755428682698,1.4545,4562.1,4562.0,1.1877]
[1755428683103,1.4545,4562.1,4562.0,1.436]
[1755428683804,1.4545,4562.1,4562.0,0.5724]
[1755428684011,1.4545,4562.1,4562.0,1.436]
[1755428687812,0.5869,4561.9,4561.8,4.0263]
[1755428688008,1.4572,4561.9,4561.8,4.6455]
[1755428691508,0.0219,4562.6,4561.8,4.6455]
[1755428691708,0.4163,4562.0,4561.9,1.4377]
[1755428691912,0.7785,4562.0,4561.9,1.4377]
[1755428692110,1.2052,4562.0,4561.9,1.4377]
[1755428692315,1.4572,4562.0,4561.9,1.4377]
[1755428692713,1.4572,4562.0,4561.8,3.2078]
[1755428693016,1.4572,4561.5,4561.4,22.4417]
[1755428694112,0.9491,4562.1,4562.0,0.5738]
[1755428694418,1.4572,4562.1,4562.0,1.4377]
[1755428694613,1.4572,4562.1,4562.0,0.3228]
[1755428694807,1.4572,4562.1,4562.0,0.8185]
[1755428695210,0.5869,4562.1,4562.0,1.4377]
[1755428695413,0.5081,4562.4,4562.3,0.5738]
[1755428695414,1.4572,4562.4,4562.3,0.5738]
[1755428695610,0.168,4561.7,4561.6,3.2078]
[1755428695814,0.9491,4561.7,4561.6,4.6455]
[1755428696010,1.095,4562.2,4562.1,0.5738]
[1755428696213,3.6304,4562.8,4562.7,0.3228]
[1755428696416,3.3784,4562.8,4562.7,1.4377]
[1755428696615,4.1569,4562.8,4562.7,1.4377]
[1755428696816,4.665,4562.8,4562.7,1.4377]
[1755428698209,0.1706,4562.5,4562.4,0.6562]
[1755428698415,1.4572,4562.5,4562.4,1.4377]
[1755428699214,0.4163,4562.6,4562.5,1.2772]
[1755428699519,3.3758,4564.0,4563.9,0.1623]
[1755428699721,4.45559852,4564.0,4563.9,1.4377]
[1755428699915,1.41839852,4564.0,4563.9,1.4377]
[1755428700110,1.2052,4564.0,4563.9,1.4377]
[1755428700315,1.4572,4564.0,4563.9,1.4377]
[1755428700514,0.5869,4563.3,4563.1,3.2078]
[1755428700715,1.4572,4563.2,4563.1,3.3701]
[1755428700910,1.4572,4563.2,4563.1,4.6455]
[1755428701109,1.4572,4563.2,4563.1,3.5306]
[1755428701414,0.1,4565.2,4562.8,0.3682]
[1755428701415,0.5869,4562.9,4562.8,1.1867]
[1755428701614,1.4572,4562.9,4562.8,1.4377]
[1755428702009,0.3386,4562.9,4562.8,1.4377]
[1755428702215,1.4572,4563.0,4562.9,0.5738]
[1755428702721,1.4572,4563.0,4562.9,1.4377]
[1755428705619,0.9491,4563.0,4562.9,1.4377]
[1755428706120,1.4572,4563.0,4562.9,1.4377]
[1755428706619,1.4572,4563.0,4562.7,20.954]
[1755428706822,1.4572,4562.6,4562.5,24.1548]
[1755428707018,1.4572,4562.6,4562.5,20.947]
[1755428707217,1.4572,4562.6,4561.9,0.4957]
[1755428707420,1.4572,4562.0,4561.9,21.604]
[1755428707619,1.4572,4562.0,4561.9,21.7645]
[1755428707820,1.4572,4562.0,4561.9,21.2688]
[1755428708213,1.4572,4562.0,4561.9,20.946]
[1755428709424,1.4572,4562.0,4561.9,22.0155]
[1755428709626,1.4572,4562.0,4561.9,22.3837]
[1755428710227,1.4572,4562.0,4561.9,21.2688]
[1755428710830,1.4572,4562.0,4561.9,22.3837]
[1755428712526,1.4572,4562.0,4561.9,20.946]
[1755428712723,1.4572,4562.0,4561.9,21.1083]
[1755428712922,1.4572,4562.0,4561.9,21.2688]
[1755428713123,1.4572,4562.0,4561.9,20.946]
[1755428714228,1.4572,4562.0,4561.9,21.2688]
[1755428714426,1.4572,4561.9,4561.3,1.6]
[1755428714728,1.4572,4561.9,4561.8,0.3228]
[1755428717923,1.4572,4561.9,4561.8,0.8197]
[1755428718140,1.4572,4561.9,4561.8,1.2084]
[1755428718827,1.4572,4561.9,4561.8,1.4559]
[1755428719935,1.4572,4561.9,4561.8,0.5629]
[1755428720234,1.4572,4561.9,4561.8,0.3228]
[1755428720433,0.5869,4561.9,4561.4,0.4969]
[1755428720735,1.4595,4561.5,4561.4,22.1382]
[1755428720931,1.4595,4561.5,4561.4,22.3857]
[1755428721637,0.864,4561.8,4561.5,0.8856]
[1755428721832,0.4229,4561.8,4561.7,1.4637]
[1755428722130,0.864,4562.1,4562.0,0.4064]
[1755428722333,0.3656,4562.7,4562.0,0.9668]
[1755428722636,0.3656,4563.0,4562.6,1.4637]
[1755428722837,4.6673,4563.2,4563.1,0.3306]
[1755428723024,4.6673,4563.2,4563.1,1.075]
[1755428723025,3.66221164,4563.2,4563.1,1.075]
[1755428723230,0.254,4563.5,4563.1,1.4637]
[1755428723426,0.9611,4563.2,4563.1,0.5781]
[1755428723630,1.4595,4563.2,4563.1,0.5781]
[1755428724134,1.4595,4563.2,4563.1,1.4637]
[1755428724525,1.4595,4563.2,4563.1,0.5707]
[1755428724736,1.4595,4563.2,4563.1,0.1717]
[1755428724937,1.4595,4563.2,4563.1,1.4637]
[1755428726530,0.864,4563.8,4563.1,0.5781]
[1755428726743,1.16163985,4563.7,4563.6,0.3306]
[1755428726936,1.66003985,4563.7,4563.6,0.3306]
[1755428727333,1.66004313,4563.7,4563.6,0.3306]
[1755428727940,1.66004313,4563.7,4563.6,0.1717]
[1755428728139,0.79604313,4563.7,4562.7,3.2078]
[1755428728436,1.4595,4563.4,4563.3,1.4637]
[1755428732143,3.2078,4563.9,4563.3,1.4637]
[1755428732343,3.2078,4563.9,4562.7,3.2297]
[1755428732344,0.4229,4563.5,4563.4,1.4637]
[1755428732538,0.9611,4563.5,4563.4,1.4637]
[1755428732942,0.5955,4563.5,4563.4,1.4637]
[1755428733142,0.9611,4563.5,4563.4,1.4637]
[1755428733445,1.4595,4563.5,4563.4,1.4637]
[1755428737235,0.5955,4562.8,4562.7,4.6715]
[1755428737440,1.4595,4562.8,4562.7,4.6715]
[1755428738645,0.9611,4562.8,4562.7,4.6715]
[1755428738950,0.2538,4562.8,4562.7,4.6715]
[1755428739541,0.4229,4562.8,4562.7,4.6715]
[1755428740339,0.864,4563.8,4562.8,0.8856]
[1755428740545,0.2004476,4563.7,4562.8,0.8856]
[1755428740738,1.4595,4563.0,4562.9,1.4637]
[1755428742441,1.4595,4563.0,4562.9,0.3306]
[1755428742638,0.5955,4562.8,4562.7,3.5384]
[1755428742845,1.4595,4562.8,4562.7,4.0353]
[1755428743148,1.4595,4562.8,4562.7,4.6715]
[1755428745246,1.4595,4562.8,4562.7,4.2828]
[1755428745947,1.4595,4562.8,4562.7,4.6715]
[1755428747247,1.4595,4562.8,4562.7,4.0353]
[1755428747545,1.4595,4562.8,4562.7,3.5384]
[1755428747743,0.5694,4562.3,4562.2,23.3052]
[1755428747943,1.4222,4562.3,4562.2,22.3104]
[1755428749446,1.4222,4562.3,4562.2,22.0669]
[1755428749747,1.4222,4562.3,4562.2,22.3104]
[1755428750449,1.4222,4562.3,4562.2,21.9546]
[1755428750949,1.4222,4562.3,4562.2,22.3104]
[1755428752143,1.4222,4562.3,4562.2,21.22]
[1755428752447,1.4222,4562.3,4562.2,22.3104]
[1755428753946,1.4222,4562.3,4562.2,1.4274]
[1755428755445,1.4222,4562.3,4562.2,0.8281]
[1755428755838,1.4222,4562.3,4562.2,1.4274]
[1755428756852,0.9354,4562.3,4562.2,1.4274]
[1755428757051,0.5694,4562.3,4562.2,1.4274]
[1755428757552,0.4008,4562.4,4562.3,1.4274]
[1755428757753,0.7668,4562.4,4562.3,1.4274]
[1755428758151,1.4222,4562.4,4562.3,1.4274]
[1755428759156,0.5694,4562.4,4562.1,3.2078]
[1755428759454,0.9354,4562.2,4562.1,4.6352]
[1755428759756,0.5694,4562.2,4562.1,3.7883]
[1755428759960,1.4222,4562.2,4562.1,3.7883]
[1755428760256,1.4222,4562.2,4562.1,4.6352]
[1755428762554,1.4222,4562.2,4562.1,3.2078]
[1755428762748,1.4222,4562.2,4562.1,4.6352]
[1755428763147,0.5694,4561.6,4561.5,3.7883]
[1755428763354,1.4222,4561.6,4561.5,0.5805]
[1755428763749,1.4222,4561.6,4561.5,1.4274]
[1755428764654,1.4222,4561.6,4561.5,0.1719]
[1755428764852,1.4222,4561.1,4561.0,22.426]
[1755428765160,1.4222,4561.1,4561.0,22.0099]
[1755428766256,0.5694,4561.2,4561.1,1.0716]
[1755428766557,1.4222,4561.2,4561.1,1.0716]
[1755428766859,1.4222,4561.2,4561.1,1.4274]
[1755428767558,1.4222,4561.2,4561.1,1.0716]
[1755428768661,1.4222,4561.2,4561.1,1.4274]
[1755428769254,0.5694,4561.2,4561.1,1.4274]
[1755428769962,1.4222,4561.2,4561.1,1.4274]
[1755428770559,0.5694,4561.2,4561.1,0.5805]
[1755428770758,1.4222,4561.2,4561.1,0.8299]
[1755428770959,1.4222,4561.2,4561.1,1.4274]
[1755428771968,1.4222,4561.2,4561.1,0.8281]
[1755428772363,1.4222,4561.1,4561.0,20.826]
[1755428774163,0.5694,4561.1,4560.5,0.3558]
[1755428774463,1.4222,4560.6,4560.5,1.4274]
[1755428774666,1.4222,4560.6,4560.5,22.2334]
[1755428775267,1.4222,4560.6,4560.5,22.2344]
[1755428776462,0.9354,4560.6,4560.5,22.2344]
[1755428776860,1.4222,4560.6,4560.5,22.2344]
[1755428778465,1.4222,4560.6,4560.5,1.4274]
[1755428778664,1.4222,4560.6,4560.5,22.2304]
[1755428779962,3.2078,4561.2,4560.5,22.2304]
[1755428780166,1.4548,4561.3,4561.2,1.4329]
[1755428780366,1.65572176,4561.3,4561.2,1.4329]
[1755428780663,1.65572176,4561.3,4561.2,0.8133]
[1755428780867,1.4548,4561.3,4561.2,0.3251]
[1755428781367,0.5898,4561.0,4560.9,0.4882]
[1755428781568,1.4548,4561.0,4560.9,1.4329]
[1755428783169,0.965,4561.0,4560.9,1.4329]
[1755428783369,1.4548,4561.0,4560.9,1.4329]
[1755428783966,1.4548,4561.0,4560.9,0.8133]
[1755428784165,1.4548,4561.0,4560.9,0.3251]
[1755428784665,1.4548,4561.0,4560.8,20.795]
[1755428784861,1.4548,4560.9,4560.8,21.8474]
[1755428785067,1.4548,4560.9,4560.8,22.2279]
[1755428785664,0.2424,4561.6,4560.8,21.3592]
[1755428785870,0.79083415,4561.5,4561.4,0.5642]
[1755428786172,1.65583415,4561.5,4561.4,1.4329]
[1755428787368,1.65583415,4561.5,4561.4,0.8133]
[1755428788165,1.65583415,4561.5,4561.4,1.4329]
[1755428788367,1.65583415,4561.5,4561.4,0.8133]
[1755428788567,0.865,4561.4,4560.8,20.795]
[1755428788871,1.4548,4560.9,4560.8,22.2279]
[1755428789068,3.2078,4561.7,4560.8,22.2498]
[1755428789268,0.2486,4561.6,4561.5,1.0524]
[1755428789467,0.20123688,4561.6,4561.5,0.5861]
[1755428789773,3.2078,4562.5,4561.5,0.5861]
[1755428789975,0.20120028,4562.4,4561.5,0.5642]
[1755428790174,0.79100028,4562.3,4562.2,0.5642]
[1755428790375,1.65600028,4562.3,4562.2,1.4329]
[1755428790572,1.65600028,4562.3,4561.8,20.775]
[1755428790573,0.79100028,4562.3,4561.9,0.4882]
[1755428790773,0.3412,4561.7,4561.6,1.1938]
[1755428790972,0.5898,4561.7,4561.6,1.4329]
[1755428791374,1.4548,4561.7,4561.6,1.4329]
[1755428791671,0.4205,4561.7,4561.6,1.4329]
[1755428791870,3.2078,4562.5,4562.4,0.5642]
[1755428791871,4.6626,4562.5,4562.4,0.5642]
[1755428792070,4.86383308,4562.5,4562.4,1.4329]
[1755428792570,4.6626,4562.5,4562.4,1.0524]
[1755428792771,4.86388535,4562.5,4562.4,0.8133]
[1755428792972,4.86388535,4562.5,4561.8,0.4882]
[1755428793179,0.5898,4561.9,4561.8,1.0524]
[1755428793479,1.4548,4561.9,4561.8,1.0524]
[1755428793874,1.4548,4561.9,4561.8,1.4329]
[1755428794679,1.4548,4561.9,4561.8,0.3251]
[1755428794974,1.4548,4561.6,4561.5,1.0524]
[1755428795177,0.865,4562.3,4561.5,0.5642]
[1755428795378,0.7910993,4562.2,4562.1,0.3251]
[1755428795677,1.28088178,4562.2,4562.1,0.3251]
[1755428796071,1.65608178,4562.2,4562.1,0.3251]
[1755428799075,0.965,4562.2,4562.1,1.4329]
[1755428799274,1.4548,4562.2,4562.1,1.4329]
[1755428799474,1.4548,4562.2,4562.1,0.5762]
[1755428799671,1.4548,4562.2,4562.1,1.4329]
[1755428801586,1.4548,4562.2,4562.1,0.3251]
[1755428801976,1.4548,4562.2,4562.1,0.8133]
[1755428802372,0.6176,4562.3,4562.2,1.1078]
[1755428802674,1.65591905,4562.3,4562.2,1.4329]
[1755428803184,1.65591905,4562.3,4562.2,0.1556]
[1755428804175,1.65591905,4562.3,4562.2,0.3251]
[1755428804380,1.65591905,4562.3,4562.2,1.4329]
[1755428804581,0.20111905,4562.3,4562.2,1.4329]
[1755428804884,1.65591905,4562.3,4562.2,1.4329]
[1755428807377,3.2078,4562.4,4562.2,1.4329]
[1755428807378,3.2078,4562.4,4562.3,0.8862]
[1755428807582,3.2078,4562.4,4562.3,1.4544]
[1755428808285,3.2078,4562.4,4561.5,0.6269]
[1755428808483,4.6709,4562.4,4562.3,1.4544]
[1755428810386,4.6709,4562.4,4562.3,0.3229]
[1755428810784,4.6709,4562.4,4562.3,1.4544]
[1755428813692,3.2078,4562.4,4562.3,1.4544]
[1755428814793,0.4955,4562.7,4562.4,0.2593]
[1755428814995,0.9676,4562.6,4562.5,1.4544]
[1755428815389,1.16784912,4562.6,4562.5,1.4544]
[1755428815790,1.66334912,4562.6,4562.5,1.4544]
[1755428816892,0.78754912,4562.6,4562.5,1.4544]
[1755428817588,1.16784912,4562.6,4562.5,1.4544]
[1755428817797,1.66334912,4562.6,4562.5,1.4544]
[1755428819890,1.4631,4562.6,4562.5,1.4544]
[1755428820196,0.20046291,4562.6,4562.5,1.4544]
[1755428820386,3.7033,4563.1,4562.5,1.4544]
[1755428820585,1.66353322,4563.0,4562.9,1.4544]
[1755428820893,1.4631,4562.3,4562.2,1.4544]
[1755428822296,1.4631,4562.2,4562.1,0.8414]
[1755428822593,1.4631,4562.2,4562.1,1.2091]
[1755428822991,1.4631,4562.2,4562.1,1.4544]
[1755428824094,0.5873,4562.2,4562.1,1.4544]
[1755428824303,0.9676,4562.2,4562.1,1.4544]
[1755428824798,1.4631,4562.2,4562.1,1.4544]
[1755428825498,1.211,4562.9,4562.8,0.8274]
[1755428825695,1.65918868,4562.9,4562.8,1.4544]
[1755428826099,1.4631,4562.9,4562.8,1.4544]
[1755428829993,1.4631,4563.3,4563.2,0.5682]
[1755428830199,1.65908766,4563.3,4563.2,1.4544]
[1755428830595,0.19598766,4563.3,4563.2,1.4544]
[1755428830805,1.65908766,4563.3,4563.2,1.4544]
[1755428833101,1.65902284,4563.3,4563.2,1.4544]
[1755428835205,0.19592284,4563.3,4563.2,1.4544]
[1755428835602,3.2078,4563.7,4563.2,0.5682]
[1755428835803,1.65901293,4563.6,4563.5,1.4544]
[1755428837302,1.65902035,4563.6,4563.5,1.4544]
[1755428837500,1.4631,4563.6,4563.5,1.4544]
[1755428837700,1.4631,4563.6,4563.1,0.4979]
[1755428837906,0.58,4563.2,4563.1,1.2077]
[1755428838108,1.4122,4563.2,4563.1,1.46]
[1755428838704,3.6829,4563.7,4563.1,1.46]
[1755428838906,1.4122,4563.2,4563.1,1.46]
[1755428842103,0.58,4563.0,4562.9,3.2078]
[1755428842310,1.4122,4563.0,4562.9,4.6678]
[1755428849014,1.4122,4563.0,4562.9,3.2078]
[1755428850116,1.4122,4563.0,4562.9,3.5377]
[1755428850310,1.4122,4563.0,4562.9,4.4155]
[1755428852505,1.4122,4563.0,4562.1,1.6219]
[1755428852506,1.4122,4563.0,4562.2,3.7057]
[1755428852711,1.4122,4562.3,4562.2,4.6678]
[1755428853311,1.4122,4562.3,4562.2,3.2078]
[1755428855111,1.4122,4562.3,4562.2,2.8185]
[1755428855311,0.8322,4562.1,4561.0,0.8778]
[1755428855516,0.0219,4562.2,4561.0,0.8778]
[1755428855517,0.1605,4561.1,4561.0,1.46]
[1755428855717,1.4122,4561.1,4561.0,1.46]
[1755428860416,0.814,4561.1,4561.0,1.46]
[1755428860717,0.58,4561.9,4561.8,1.46]
[1755428861321,0.9927,4562.2,4562.1,0.5822]
[1755428861525,3.2078,4562.8,4561.4,3.2078]
[1755428861526,0.8211,4562.7,4562.6,0.3299]
[1755428861826,1.4122,4562.7,4562.6,1.46]
[1755428862019,0.8322,4562.6,4561.5,0.8778]
[1755428862218,0.4751,4562.4,4561.5,0.8778]
[1755428862421,1.4122,4562.4,4562.3,1.46]
[1755428862719,0.58,4562.4,4562.3,1.46]
[1755428862920,1.4122,4562.4,4562.3,0.5822]
[1755428863420,1.4122,4562.4,4561.4,3.2078]
[1755428863421,0.58,4562.1,4561.5,0.8778]
[1755428863626,0.58,4561.6,4561.5,1.46]
[1755428864321,0.1605,4561.6,4561.5,1.46]
[1755428864524,0.0219,4562.7,4561.5,0.5822]
[1755428864824,1.4122,4561.8,4561.7,1.46]
[1755428865821,1.0551,4561.7,4561.6,0.1615]
[1755428866128,1.4122,4561.7,4561.6,1.46]
[1755428869019,0.5758,4561.5,4561.4,3.3781]
[1755428869226,1.0732,4561.0,4560.9,4.6468]
[1755428869526,1.4375,4561.0,4560.9,4.6468]
[1755428869922,0.5758,4561.0,4560.9,4.6468]
[1755428870227,1.4375,4561.3,4561.2,0.5715]
[1755428870421,1.4375,4561.3,4561.2,1.439]
[1755428871414,3.2078,4561.9,4561.2,0.5715]
[1755428871618,1.4375,4562.1,4562.0,1.439]
[1755428872222,0.5758,4562.1,4562.0,1.439]
[1755428872416,4.3868,4562.4,4562.3,0.5715]
[1755428872616,4.3868,4562.4,4562.3,1.439]
[1755428872617,4.6453,4562.4,4562.3,1.439]
[1755428873830,4.6453,4562.4,4562.3,0.1703]
[1755428874024,0.5758,4561.7,4561.6,0.8183]
[1755428874223,1.4375,4561.7,4561.6,0.1703]
[1755428874424,0.5758,4561.7,4560.9,3.2078]
[1755428874618,3.2078,4561.9,4560.9,3.2078]
[1755428874619,0.4974,4561.5,4561.0,0.4866]
[1755428874828,1.4375,4561.1,4561.0,1.439]
[1755428876231,0.8617,4561.5,4561.4,0.5715]
[1755428876429,1.4375,4561.5,4561.4,1.439]
[1755428877422,1.4375,4561.5,4561.0,0.8675]
[1755428877624,0.6032,4561.4,4561.1,0.6277]
[1755428877832,0.5758,4561.2,4561.1,0.5715]
[1755428878030,1.4375,4561.2,4561.1,0.5715]
[1755428878532,1.4375,4561.2,4561.1,1.439]
[1755428879231,0.164,4561.2,4561.1,1.439]
[1755428880035,0.5758,4561.2,4561.1,1.439]
[1755428880224,0.8617,4561.5,4561.1,0.8113]
[1755428880429,1.4375,4561.5,4561.4,1.439]
[1755428881534,0.5758,4561.5,4561.4,1.439]
[1755428881728,3.2297,4562.5,4561.5,0.8675]
[1755428881729,3.2078,4562.5,4561.5,0.8675]
[1755428881935,1.4375,4562.4,4562.3,0.5715]
[1755428882133,1.4375,4562.4,4562.3,1.439]
[1755428882134,1.6309126,4562.4,4562.3,1.439]
[1755428882533,0.7692126,4562.4,4562.3,1.439]
[1755428882832,1.4375,4562.4,4562.3,1.439]
[1755428883230,1.63103979,4562.4,4562.3,1.439]
[1755428883636,1.63103979,4562.4,4562.3,1.86088529]
[1755428884640,0.5758,4562.4,4562.3,1.86088529]
[1755428885532,1.4375,4562.4,4562.3,1.86088529]
[1755428886131,0.164,4562.4,4562.3,1.86088529]
[1755428886334,1.4375,4563.0,4562.9,0.4012]
[1755428886531,1.63097544,4563.0,4562.9,1.439]
[1755428886737,0.76927544,4563.0,4562.9,1.62108529]
[1755428887035,0.5758,4563.0,4562.9,1.86088529]
[1755428887234,0.8617,4563.4,4562.9,1.86088529]
[1755428887539,1.4375,4563.4,4563.3,1.439]
[1755428887733,1.63088434,4563.4,4563.3,1.86088529]
[1755428888131,1.6308811,4563.4,4563.3,1.86088529]
[1755428888333,1.4375,4563.4,4563.3,1.86088529]
[1755428890337,0.5758,4563.4,4563.3,1.86088529]
[1755428890532,0.8617,4563.7,4563.3,0.99338529]
[1755428890836,0.164,4563.8,4563.7,1.439]
[1755428891235,0.6032,4564.8,4564.3,0.4866]
[1755428891439,1.4375,4564.8,4564.7,0.5698]
[1755428891638,1.4375,4564.8,4564.7,1.439]
[1755428891841,1.4375,4564.8,4564.7,1.86088529]
[1755428892532,3.2078,4564.9,4564.7,1.86088529]
[1755428892735,3.2078,4564.9,4564.8,1.439]
[1755428892935,3.2078,4564.9,4564.8,1.86088529]
[1755428893135,3.3718,4564.9,4564.8,1.86088529]
[1755428893537,3.7836,4564.9,4564.8,1.86088529]
[1755428893733,0.1,4565.2,4564.8,0.99338529]
[1755428893937,1.0346,4565.1,4565.0,0.82938529]
[1755428894238,1.1986,4565.1,4565.0,1.69688529]
[1755428894432,1.4375,4565.1,4565.0,1.69688529]
[1755428896542,1.4375,4565.1,4565.0,0.25788529]
[1755428897345,1.4375,4565.1,4565.0,0.50468529]
[1755428897838,1.4375,4565.1,4565.0,1.07458529]
[1755428898044,1.1986,4565.1,4565.0,1.68088529]
[1755428898240,0.7755,4565.1,4565.0,1.68088529]
[1755428898537,1.1855,4565.1,4565.0,1.68088529]
[1755428899350,1.4368,4565.1,4565.0,1.68088529]
[1755428899734,0.8212,4565.1,4565.0,1.68088529]
[1755428899935,1.1756,4565.1,4565.0,1.68088529]
[1755428900447,0.1,4565.2,4565.0,1.68088529]
[1755428900640,1.2759,4565.2,4565.1,1.4145]
[1755428900837,1.5272,4565.2,4565.1,1.4145]
[1755428901041,1.5272,4565.2,4565.1,1.67238529]
[1755428905246,1.5272,4565.2,4565.1,0.25788529]
[1755428905738,0.1,4565.2,4565.1,1.67238529]
[1755428905939,0.1,4565.2,4565.1,1.69428529]
[1755428906139,0.1,4565.2,4565.1,1.67238529]
[1755428911447,1.2759,4565.2,4565.1,1.67238529]
[1755428911648,1.2759,4565.2,4565.1,0.41898529]
[1755428911838,1.5272,4565.2,4565.1,0.25788529]
[1755428912040,1.5272,4565.2,4565.1,0.66648529]
[1755428912244,1.5272,4565.2,4565.1,1.67238529]
[1755428912436,1.5272,4565.2,4565.1,0.25788529]
[1755428912647,1.4272,4564.1,4564.0,4.6223]
[1755428912842,1.1759,4564.1,4564.0,4.6223]
[1755428916049,1.4272,4564.1,4563.5,3.2078]
[1755428916246,0.5671,4563.6,4563.5,3.3689]
[1755428916542,1.4272,4563.6,4563.5,4.016]
[1755428916749,1.4272,4563.6,4563.5,3.2078]
[1755428917342,1.4272,4563.6,4563.5,3.4553]
[1755428917544,1.4272,4563.6,4563.5,3.6164]
[1755428918045,1.4272,4563.6,4563.5,3.858]
[1755428918235,1.4272,4563.6,4563.5,4.016]
[1755428918442,1.4272,4563.6,4563.5,4.6223]
[1755428919247,1.4272,4563.6,4563.5,3.2078]
[1755428920438,1.4272,4563.6,4563.5,3.858]
[1755428920842,1.4272,4563.6,4563.5,4.2198]
[1755428921038,1.4272,4563.6,4563.5,4.6223]
[1755428921649,1.1759,4563.6,4563.5,4.3778]
[1755428921854,1.1759,4563.6,4563.5,4.6223]
[1755428926349,1.4272,4563.6,4563.5,4.3778]
[1755428926649,1.4272,4563.6,4563.5,4.016]
[1755428927955,1.4272,4563.6,4563.5,3.6164]
[1755428928450,1.1978,4563.6,4563.5,3.2078]
[1755428928645,1.4296,4562.9,4562.8,4.3968]
[1755428928955,1.1827,4562.9,4562.8,4.6395]
[1755428929146,0.6206,4563.9,4562.9,0.8875]
[1755428929352,3.2078,4564.2,4563.8,0.5661]
[1755428929546,1.1827,4564.6,4564.5,0.5661]
[1755428929752,1.62327261,4564.6,4564.5,1.4317]
[1755428929951,1.4296,4564.6,4564.5,1.189]
[1755428930248,1.1827,4564.6,4564.5,1.4317]
[1755428930447,0.1563,4564.6,4564.5,1.4317]
[1755428930650,0.243,4565.0,4564.5,1.4317]
[1755428930948,1.1827,4564.6,4564.5,0.5661]
[1755428931154,1.4296,4564.6,4564.5,0.5661]
[1755428931344,1.4296,4564.6,4564.5,1.4317]
[1755428931854,0.5621,4564.6,4563.9,0.2507]
[1755428932049,0.5588,4564.0,4563.9,0.8168]
[1755428932253,1.1827,4564.0,4563.9,1.4317]
[1755428932554,1.4296,4564.0,4563.9,1.4317]
[1755428933256,1.4296,4564.0,4563.9,1.189]
[1755428934053,1.4296,4563.4,4563.3,1.189]
[1755428934355,1.4296,4563.4,4563.3,1.4317]
[1755428935047,0.8051,4563.4,4563.3,1.4317]
[1755428935357,0.1563,4563.4,4563.3,1.4317]
[1755428935554,0.3776,4563.7,4563.3,0.5661]
[1755428935750,0.1563,4563.7,4563.6,1.4317]
[1755428935952,0.5621,4564.3,4564.2,0.5661]
[1755428936156,0.8051,4564.3,4564.2,1.4317]
[1755428936352,0.5621,4564.3,4564.2,1.4317]
[1755428936551,0.8051,4564.3,4564.2,1.4317]
[1755428936749,1.1827,4564.3,4564.2,1.4317]
[1755428937959,1.4296,4564.3,4564.2,1.4317]
[1755428938155,0.809,4564.3,4563.7,0.2507]
[1755428938358,3.4547,4564.6,4563.8,0.2507]
[1755428938553,1.1827,4564.6,4564.5,1.4317]
[1755428939054,1.4296,4564.6,4564.5,1.4317]
[1755428939858,1.1827,4564.6,4564.5,1.189]
[1755428940053,1.1827,4564.6,4564.5,1.4317]
[1755428940259,1.4296,4564.6,4564.5,1.4317]
[1755428940658,1.4296,4564.6,4564.5,0.6575]
[1755428941458,1.62360727,4564.6,4564.5,0.6575]
[1755428942064,1.62361652,4564.6,4564.5,0.6575]
[1755428942364,1.4296,4564.0,4563.9,1.189]
[1755428942562,1.1827,4564.0,4563.9,1.4317]
[1755428943358,0.3158,4564.1,4564.0,1.4317]
[1755428943759,0.3158,4564.1,4563.0,20.489]
[1755428943760,0.5339,4564.5,4564.4,0.1593]